[Event "*** Titled Tuesday Blitz"]
[Site "Chess.com"]
[Date "2020.11.03"]
[Round "8"]
[White "giantslayer83"]
[Black "Yashasd1995"]
[Result "1-0"]
[WhiteElo "2712"]
[BlackElo "2574"]
[TimeControl "180+1"]
[EndTime "11:32:28 PST"]
[Termination "giantslayer83 won by resignation"]

1. d4 {[%clk 0:03:00.9]} 1... Nf6 {[%clk 0:02:49.6]} 2. Bg5 {[%clk 0:03:00.7]}
2... Ne4 {[%clk 0:02:48.8]} 3. Bf4 {[%clk 0:03:00.6]} 3... d5 {[%clk 0:02:49.7]}
4. e3 {[%clk 0:02:59.7]} 4... g6 {[%clk 0:02:37.6]} 5. Bd3 {[%clk 0:02:59.4]}
5... Bg7 {[%clk 0:02:35.8]} 6. Bxe4 {[%clk 0:02:58.5]} 6... dxe4 {[%clk
0:02:36.7]} 7. Nc3 {[%clk 0:02:59.2]} 7... f5 {[%clk 0:02:35.4]} 8. h4 {[%clk
0:02:58.8]} 8... h6 {[%clk 0:02:32.9]} 9. Nge2 {[%clk 0:02:53.5]} 9... e6 {[%clk
0:02:23.1]} 10. f3 {[%clk 0:02:52.3]} 10... exf3 {[%clk 0:02:21.5]} 11. gxf3
{[%clk 0:02:53.2]} 11... Nd7 {[%clk 0:02:00.4]} 12. Nb5 {[%clk 0:02:31.9]} 12...
e5 {[%clk 0:01:59.4]} 13. dxe5 {[%clk 0:02:31.8]} 13... a6 {[%clk 0:01:59.7]}
14. Nbd4 {[%clk 0:02:04.9]} 14... Nxe5 {[%clk 0:01:58.5]} 15. Bxe5 {[%clk
0:02:05]} 15... Bxe5 {[%clk 0:01:58.1]} 16. f4 {[%clk 0:02:05.9]} 16... Bf6
{[%clk 0:01:56.9]} 17. h5 {[%clk 0:02:05.2]} 17... Bh4+ {[%clk 0:01:49.6]} 18.
Kf1 {[%clk 0:02:04.2]} 18... g5 {[%clk 0:01:30.8]} 19. Nf3 {[%clk 0:01:59.1]}
19... Be6 {[%clk 0:01:18.9]} 20. Nxh4 {[%clk 0:01:55]} 20... gxh4 {[%clk
0:01:18.6]} 21. Kf2 {[%clk 0:01:52.6]} 21... Bd5 {[%clk 0:01:12.1]} 22. Rh2
{[%clk 0:01:49.6]} 22... Qd6 {[%clk 0:01:07.4]} 23. Nc3 {[%clk 0:01:48.2]} 23...
O-O-O {[%clk 0:01:07.5]} 24. Qxd5 {[%clk 0:01:45.2]} 24... Qxd5 {[%clk
0:01:08.4]} 25. Nxd5 {[%clk 0:01:46]} 25... Rxd5 {[%clk 0:01:08.9]} 26. Kf3
{[%clk 0:01:46.5]} 26... Rg8 {[%clk 0:00:59.6]} 27. Re2 {[%clk 0:01:20.5]} 27...
Rg3+ {[%clk 0:00:36.8]} 28. Kf2 {[%clk 0:01:20.7]} 28... Rd8 {[%clk 0:00:31.2]}
29. Rh1 {[%clk 0:01:16.8]} 29... Rg4 {[%clk 0:00:31.1]} 30. Ke1 {[%clk
0:01:12.1]} 30... Re8 {[%clk 0:00:28.8]} 31. Kd2 {[%clk 0:01:11.2]} 31... Kd7
{[%clk 0:00:28.3]} 32. Kd3 {[%clk 0:01:08.7]} 32... Kd6 {[%clk 0:00:27.6]} 33.
Rh3 {[%clk 0:01:08.5]} 33... c5 {[%clk 0:00:27]} 34. c4 {[%clk 0:01:07.6]} 34...
Re4 {[%clk 0:00:26]} 35. b3 {[%clk 0:01:07.2]} 35... Re8 {[%clk 0:00:23.4]} 36.
Reh2 {[%clk 0:01:06.9]} 36... Rg3 {[%clk 0:00:23.7]} 37. Rxg3 {[%clk 0:01:06.7]}
37... hxg3 {[%clk 0:00:24.6]} 38. Rg2 {[%clk 0:01:06.8]} 38... Rg8 {[%clk
0:00:25.2]} 39. Ke2 {[%clk 0:01:06.9]} 39... Rg4 {[%clk 0:00:24.2]} 40. Kf3
{[%clk 0:01:07.3]} 40... Rh4 {[%clk 0:00:24]} 41. Rxg3 {[%clk 0:01:01]} 41...
Rxh5 {[%clk 0:00:24.1]} 42. Rg6+ {[%clk 0:01:01.9]} 42... Kc7 {[%clk 0:00:23.6]}
43. e4 {[%clk 0:00:57.6]} 43... fxe4+ {[%clk 0:00:17.6]} 44. Kxe4 {[%clk
0:00:58.5]} 44... Rh1 {[%clk 0:00:16.4]} 45. f5 {[%clk 0:00:58.7]} 45... Re1+
{[%clk 0:00:16.1]} 46. Kd5 {[%clk 0:00:58.6]} 46... Rd1+ {[%clk 0:00:15.4]} 47.
Ke6 {[%clk 0:00:58.6]} 47... h5 {[%clk 0:00:15.4]} 48. f6 {[%clk 0:00:57.5]}
48... Re1+ {[%clk 0:00:14.7]} 49. Kf7 {[%clk 0:00:55.9]} 49... h4 {[%clk
0:00:13.6]} 50. Rh6 {[%clk 0:00:56.3]} 50... Re4 {[%clk 0:00:13.3]} 51. Kg7
{[%clk 0:00:56.1]} 51... Rg4+ {[%clk 0:00:13.3]} 52. Kf8 {[%clk 0:00:56]} 52...
Kd7 {[%clk 0:00:13.7]} 53. f7 {[%clk 0:00:56.5]} 53... b5 {[%clk 0:00:12.1]} 54.
Rh7 {[%clk 0:00:56.6]} 54... bxc4 {[%clk 0:00:13]} 55. bxc4 {[%clk 0:00:56.2]}
55... Rxc4 {[%clk 0:00:12.9]} 56. Kg8 {[%clk 0:00:55.7]} 56... Rg4+ {[%clk
0:00:13.3]} 57. Rg7 {[%clk 0:00:56.1]} 57... Rf4 {[%clk 0:00:13.3]} 58. f8=Q+
{[%clk 0:00:56]} 1-0

[Event "*** Titled Tuesday Blitz"]
[Site "Chess.com"]
[Date "2020.11.03"]
[Round "8"]
[White "Jospem"]
[Black "Nikolakis2014"]
[Result "0-1"]
[WhiteElo "2982"]
[BlackElo "2757"]
[TimeControl "180+1"]
[EndTime "11:32:29 PST"]
[Termination "Nikolakis2014 won on time"]

1. e4 {[%clk 0:02:57.7]} 1... c6 {[%clk 0:02:59.3]} 2. d4 {[%clk 0:02:55.7]}
2... d5 {[%clk 0:02:59.3]} 3. exd5 {[%clk 0:02:56.6]} 3... cxd5 {[%clk
0:02:59.4]} 4. Bd3 {[%clk 0:02:57.1]} 4... Nf6 {[%clk 0:02:59.5]} 5. c3 {[%clk
0:02:57.3]} 5... Bg4 {[%clk 0:02:59.5]} 6. Qb3 {[%clk 0:02:54.4]} 6... Qc7
{[%clk 0:02:59.4]} 7. h3 {[%clk 0:02:49.4]} 7... Bd7 {[%clk 0:02:51.9]} 8. Nf3
{[%clk 0:02:44.6]} 8... e6 {[%clk 0:02:49.6]} 9. O-O {[%clk 0:02:44.2]} 9... Bd6
{[%clk 0:02:49.5]} 10. Re1 {[%clk 0:02:44]} 10... Bc6 {[%clk 0:02:47.7]} 11. Bg5
{[%clk 0:02:34.6]} 11... Nbd7 {[%clk 0:02:46.5]} 12. Nbd2 {[%clk 0:02:33.6]}
12... O-O {[%clk 0:02:45.7]} 13. a4 {[%clk 0:02:25.4]} 13... Rfe8 {[%clk
0:02:38]} 14. Qc2 {[%clk 0:02:24.7]} 14... h6 {[%clk 0:02:35.9]} 15. Bxf6 {[%clk
0:02:21.1]} 15... Nxf6 {[%clk 0:02:36]} 16. Ne5 {[%clk 0:02:21.7]} 16... Bxe5
{[%clk 0:02:32.2]} 17. Rxe5 {[%clk 0:02:15.1]} 17... Nd7 {[%clk 0:02:31.6]} 18.
Re3 {[%clk 0:02:12]} 18... e5 {[%clk 0:02:23.7]} 19. dxe5 {[%clk 0:02:04.7]}
19... Nxe5 {[%clk 0:02:21.9]} 20. Bf1 {[%clk 0:01:55.6]} 20... Ng6 {[%clk
0:02:03]} 21. Rxe8+ {[%clk 0:01:49.2]} 21... Rxe8 {[%clk 0:02:02.3]} 22. Nb3
{[%clk 0:01:42.9]} 22... Qf4 {[%clk 0:01:50.3]} 23. Qd2 {[%clk 0:01:32.1]} 23...
Qf6 {[%clk 0:01:47.7]} 24. Qd4 {[%clk 0:01:19.6]} 24... Qg5 {[%clk 0:01:42.8]}
25. Kh2 {[%clk 0:00:31.7]} 25... Re4 {[%clk 0:01:30.8]} 26. Qxa7 {[%clk
0:00:19.7]} 26... Nf4 {[%clk 0:00:49.5]} 27. Nd4 {[%clk 0:00:12.1]} 27... Qe5
{[%clk 0:00:48.7]} 28. Nf3 {[%clk 0:00:11.4]} 28... Qd6 {[%clk 0:00:45.7]} 29.
Kg1 {[%clk 0:00:08.3]} 29... Qg6 {[%clk 0:00:44.3]} 30. g3 {[%clk 0:00:06]}
30... d4 {[%clk 0:00:43.8]} 31. Nxd4 {[%clk 0:00:04.1]} 31... Bd5 {[%clk
0:00:40.8]} 32. a5 {[%clk 0:00:03.9]} 32... Re8 {[%clk 0:00:29.3]} 33. a6 {[%clk
0:00:04.2]} 33... Qe4 {[%clk 0:00:29.2]} 34. f3 {[%clk 0:00:01.9]} 34... Qe3+
{[%clk 0:00:29.3]} 35. Kh1 {[%clk 0:00:02.1]} 35... Bxf3+ {[%clk 0:00:27.7]} 36.
Nxf3 {[%clk 0:00:02.7]} 36... Qxa7 {[%clk 0:00:26.9]} 37. gxf4 {[%clk
0:00:03.1]} 37... bxa6 {[%clk 0:00:26.2]} 38. Nd4 {[%clk 0:00:03.6]} 38... Qb7+
{[%clk 0:00:25.7]} 39. Bg2 {[%clk 0:00:04]} 39... Qxb2 {[%clk 0:00:25.6]} 40.
Rxa6 {[%clk 0:00:04.6]} 40... Qxc3 {[%clk 0:00:25.2]} 41. Nf3 {[%clk 0:00:05.1]}
41... Qc1+ {[%clk 0:00:25.4]} 42. Kh2 {[%clk 0:00:02.8]} 42... Qxf4+ {[%clk
0:00:25.9]} 43. Kh1 {[%clk 0:00:03.5]} 43... Rc8 {[%clk 0:00:26.3]} 0-1

[Event "*** Titled Tuesday Blitz"]
[Site "Chess.com"]
[Date "2020.11.03"]
[Round "8"]
[White "lolo9292"]
[Black "ChessWarrior7197"]
[Result "0-1"]
[WhiteElo "2515"]
[BlackElo "3015"]
[TimeControl "180+1"]
[EndTime "11:32:30 PST"]
[Termination "ChessWarrior7197 won by resignation"]

1. Nf3 {[%clk 0:03:00.9]} 1... d5 {[%clk 0:02:59.8]} 2. g3 {[%clk 0:03:00.6]}
2... Nd7 {[%clk 0:02:58.5]} 3. d4 {[%clk 0:02:59.9]} 3... Nb6 {[%clk 0:02:58]}
4. Bg2 {[%clk 0:03:00.8]} 4... Bf5 {[%clk 0:02:58.2]} 5. Na3 {[%clk 0:02:59.5]}
5... e6 {[%clk 0:02:54.5]} 6. O-O {[%clk 0:02:58.2]} 6... Bxa3 {[%clk
0:02:51.3]} 7. bxa3 {[%clk 0:02:58.5]} 7... Nf6 {[%clk 0:02:51.7]} 8. Ne5 {[%clk
0:02:58.1]} 8... O-O {[%clk 0:02:50.4]} 9. f3 {[%clk 0:02:58.5]} 9... c5 {[%clk
0:02:46.6]} 10. g4 {[%clk 0:02:58.2]} 10... Bg6 {[%clk 0:02:45.5]} 11. h4 {[%clk
0:02:58.5]} 11... h5 {[%clk 0:02:26]} 12. g5 {[%clk 0:02:57.2]} 12... Nfd7
{[%clk 0:02:25.2]} 13. Nxd7 {[%clk 0:02:50.1]} 13... Nxd7 {[%clk 0:02:20.6]} 14.
dxc5 {[%clk 0:02:49.7]} 14... Nxc5 {[%clk 0:02:20.5]} 15. Be3 {[%clk 0:02:49.7]}
15... Rc8 {[%clk 0:02:16.2]} 16. Qd4 {[%clk 0:02:47.3]} 16... b6 {[%clk
0:02:10]} 17. c4 {[%clk 0:02:40.9]} 17... e5 {[%clk 0:01:59.3]} 18. Qxd5 {[%clk
0:02:36.9]} 18... Qe7 {[%clk 0:01:59.1]} 19. Qd2 {[%clk 0:02:31]} 19... Ne6
{[%clk 0:01:55.7]} 20. Rac1 {[%clk 0:02:25.2]} 20... Rfd8 {[%clk 0:01:55.1]} 21.
Qb2 {[%clk 0:02:21.2]} 21... Nf4 {[%clk 0:01:51.5]} 22. Rfd1 {[%clk 0:02:16.6]}
22... Rxd1+ {[%clk 0:01:48.6]} 23. Rxd1 {[%clk 0:02:17.5]} 23... Rxc4 {[%clk
0:01:49.5]} 24. Qd2 {[%clk 0:02:12.3]} 24... Kh7 {[%clk 0:01:47.8]} 25. Bf1
{[%clk 0:02:11.7]} 25... Rc2 {[%clk 0:01:46.2]} 26. Qd7 {[%clk 0:01:58.5]} 26...
Qxa3 {[%clk 0:01:45.8]} 27. Bxf4 {[%clk 0:01:06.3]} 27... exf4 {[%clk
0:01:46.7]} 28. Qd8 {[%clk 0:00:49]} 28... Rxa2 {[%clk 0:01:39.5]} 29. Qb8
{[%clk 0:00:43.7]} 29... Qe3+ {[%clk 0:01:39.3]} 30. Kh1 {[%clk 0:00:42.6]}
30... Rxe2 {[%clk 0:01:34.3]} 31. Bxe2 {[%clk 0:00:40.7]} 31... Qxe2 {[%clk
0:01:35.2]} 32. Rd8 {[%clk 0:00:34.9]} 32... Qxf3+ {[%clk 0:01:34.1]} 33. Kg1
{[%clk 0:00:35.5]} 33... Qg3+ {[%clk 0:01:33.8]} 34. Kf1 {[%clk 0:00:35.8]}
34... Bd3+ {[%clk 0:01:33.6]} 35. Rxd3 {[%clk 0:00:36.4]} 35... Qxd3+ {[%clk
0:01:34.3]} 36. Kf2 {[%clk 0:00:36.3]} 36... Qe3+ {[%clk 0:01:31.5]} 37. Kf1
{[%clk 0:00:36.6]} 37... Qh3+ {[%clk 0:01:23.7]} 38. Ke2 {[%clk 0:00:33]} 38...
Qxh4 {[%clk 0:01:20.2]} 39. Qd8 {[%clk 0:00:28]} 39... Qg4+ {[%clk 0:01:14.3]}
40. Kf2 {[%clk 0:00:27.1]} 40... Qg3+ {[%clk 0:01:13]} 41. Kf1 {[%clk
0:00:26.2]} 41... h4 {[%clk 0:01:07]} 42. Qd5 {[%clk 0:00:15.3]} 42... Qh3+
{[%clk 0:00:54.5]} 43. Kg1 {[%clk 0:00:14.3]} 43... Qe3+ {[%clk 0:00:53.2]} 44.
Kf1 {[%clk 0:00:14.3]} 44... Qc1+ {[%clk 0:00:53.4]} 45. Kg2 {[%clk 0:00:12.8]}
45... f3+ {[%clk 0:00:46.1]} 46. Qxf3 {[%clk 0:00:09.1]} 46... Qxg5+ {[%clk
0:00:45.9]} 47. Kh1 {[%clk 0:00:09.6]} 47... f5 {[%clk 0:00:44.2]} 48. Qd5
{[%clk 0:00:08.7]} 48... h3 {[%clk 0:00:40.9]} 49. Qxf5+ {[%clk 0:00:03.4]}
49... Qxf5 {[%clk 0:00:40.8]} 0-1

[Event "*** Titled Tuesday Blitz"]
[Site "Chess.com"]
[Date "2020.11.03"]
[Round "8"]
[White "Oglob71"]
[Black "MomchilPetkov"]
[Result "0-1"]
[WhiteElo "2473"]
[BlackElo "2657"]
[TimeControl "180+1"]
[EndTime "11:32:33 PST"]
[Termination "MomchilPetkov won by resignation"]

1. d4 {[%clk 0:03:00.9]} 1... g6 {[%clk 0:02:59.7]} 2. e4 {[%clk 0:02:59.3]}
2... Bg7 {[%clk 0:03:00]} 3. Nc3 {[%clk 0:02:59.4]} 3... c6 {[%clk 0:02:59.6]}
4. Be3 {[%clk 0:02:57.9]} 4... d5 {[%clk 0:02:58.4]} 5. f3 {[%clk 0:02:52.9]}
5... dxe4 {[%clk 0:02:55.5]} 6. fxe4 {[%clk 0:02:52.2]} 6... e5 {[%clk
0:02:55.7]} 7. Nf3 {[%clk 0:02:48.8]} 7... Bg4 {[%clk 0:02:46.1]} 8. dxe5 {[%clk
0:02:47]} 8... Qxd1+ {[%clk 0:02:45.7]} 9. Rxd1 {[%clk 0:02:47.4]} 9... Nd7
{[%clk 0:02:37.5]} 10. Bf4 {[%clk 0:02:39.1]} 10... Bxf3 {[%clk 0:02:31.3]} 11.
gxf3 {[%clk 0:02:38.8]} 11... Nxe5 {[%clk 0:02:31.9]} 12. Kf2 {[%clk 0:02:38.7]}
12... Ne7 {[%clk 0:02:29]} 13. Bh3 {[%clk 0:02:35.8]} 13... O-O {[%clk
0:02:17.8]} 14. Na4 {[%clk 0:02:30.2]} 14... b6 {[%clk 0:02:07.2]} 15. b3 {[%clk
0:02:29.8]} 15... f5 {[%clk 0:02:01.3]} 16. Bxe5 {[%clk 0:02:18.3]} 16... Bxe5
{[%clk 0:02:01.5]} 17. Rd7 {[%clk 0:02:18.7]} 17... Rae8 {[%clk 0:02:02.2]} 18.
exf5 {[%clk 0:02:15.2]} 18... Nxf5 {[%clk 0:02:03.1]} 19. Bxf5 {[%clk
0:02:14.1]} 19... Rxf5 {[%clk 0:02:03.1]} 20. Rxa7 {[%clk 0:02:06.6]} 20... b5
{[%clk 0:02:02.5]} 21. Rd1 {[%clk 0:01:53.6]} 21... bxa4 {[%clk 0:01:59.3]} 22.
Rdd7 {[%clk 0:01:54]} 22... axb3 {[%clk 0:01:56.6]} 23. cxb3 {[%clk 0:01:52.5]}
23... Ref8 {[%clk 0:01:55.4]} 24. Ke2 {[%clk 0:01:51.6]} 24... R5f7 {[%clk
0:01:47.8]} 25. h3 {[%clk 0:01:41.7]} 25... Rxd7 {[%clk 0:01:41.9]} 26. Rxd7
{[%clk 0:01:42.1]} 26... Ra8 {[%clk 0:01:42.2]} 27. Rd2 {[%clk 0:01:41.1]} 27...
c5 {[%clk 0:01:38.7]} 28. Rc2 {[%clk 0:01:40.8]} 28... Bd4 {[%clk 0:01:38.2]}
29. Kd3 {[%clk 0:01:41.2]} 29... Rf8 {[%clk 0:01:35.7]} 30. Ke4 {[%clk 0:01:41]}
30... Re8+ {[%clk 0:01:36.1]} 31. Kd5 {[%clk 0:01:40.9]} 31... Kf7 {[%clk
0:01:22.9]} 32. a4 {[%clk 0:01:36.3]} 32... Rb8 {[%clk 0:01:20.8]} 33. a5 {[%clk
0:01:30.7]} 33... Rxb3 {[%clk 0:01:20.8]} 34. Ra2 {[%clk 0:01:31.2]} 34... Bg1
{[%clk 0:01:14.7]} 35. a6 {[%clk 0:01:29.9]} 35... Rb8 {[%clk 0:01:10.7]} 36.
Kc4 {[%clk 0:01:16.8]} 36... Kf6 {[%clk 0:01:06.6]} 37. Ra1 {[%clk 0:00:59.6]}
37... Bd4 {[%clk 0:01:06]} 38. Ra2 {[%clk 0:00:54.7]} 38... Ke5 {[%clk
0:01:03.9]} 39. a7 {[%clk 0:00:53.2]} 39... Ra8 {[%clk 0:01:03.9]} 40. h4 {[%clk
0:00:29.9]} 40... Kf4 {[%clk 0:00:59.2]} 41. Ra3 {[%clk 0:00:29.8]} 41... Be3
{[%clk 0:00:57.7]} 42. Ra6 {[%clk 0:00:17.1]} 42... Kxf3 {[%clk 0:00:55.7]} 43.
Rf6+ {[%clk 0:00:17.5]} 43... Kg4 {[%clk 0:00:55.3]} 44. Rf7 {[%clk 0:00:17.5]}
44... h5 {[%clk 0:00:52.5]} 45. Rg7 {[%clk 0:00:17.6]} 45... Kxh4 {[%clk
0:00:52.4]} 46. Kd3 {[%clk 0:00:17.8]} 46... Bd4 {[%clk 0:00:46.3]} 47. Rf7
{[%clk 0:00:15.6]} 47... g5 {[%clk 0:00:46.2]} 48. Kc4 {[%clk 0:00:15.7]} 48...
g4 {[%clk 0:00:46.4]} 49. Kb5 {[%clk 0:00:15.6]} 49... c4 {[%clk 0:00:46.6]} 50.
Kxc4 {[%clk 0:00:14.5]} 50... Rxa7 {[%clk 0:00:46]} 51. Rf1 {[%clk 0:00:14.9]}
51... Be5 {[%clk 0:00:44.8]} 52. Kd5 {[%clk 0:00:14.9]} 52... Bh2 {[%clk
0:00:43.7]} 53. Ke4 {[%clk 0:00:14.4]} 53... Re7+ {[%clk 0:00:41.7]} 54. Kd3
{[%clk 0:00:13.8]} 54... g3 {[%clk 0:00:41.4]} 55. Rf5 {[%clk 0:00:14.1]} 55...
g2 {[%clk 0:00:40.9]} 0-1

[Event "*** Titled Tuesday Blitz"]
[Site "Chess.com"]
[Date "2020.11.03"]
[Round "8"]
[White "crazy_but_lazy"]
[Black "PavelShkapenko"]
[Result "0-1"]
[WhiteElo "2461"]
[BlackElo "2644"]
[TimeControl "180+1"]
[EndTime "11:32:34 PST"]
[Termination "PavelShkapenko won by resignation"]

1. c4 {[%clk 0:03:00.9]} 1... Nf6 {[%clk 0:02:59.4]} 2. Nc3 {[%clk 0:03:00.5]}
2... e6 {[%clk 0:02:58.1]} 3. e4 {[%clk 0:02:59.9]} 3... c5 {[%clk 0:02:58.4]}
4. e5 {[%clk 0:02:52.5]} 4... Ng8 {[%clk 0:02:56.9]} 5. Nf3 {[%clk 0:02:52.8]}
5... d6 {[%clk 0:02:56]} 6. d4 {[%clk 0:02:33]} 6... cxd4 {[%clk 0:02:52.3]} 7.
Qxd4 {[%clk 0:02:32]} 7... Nc6 {[%clk 0:02:52.6]} 8. Qf4 {[%clk 0:02:31.5]} 8...
Nge7 {[%clk 0:02:35.8]} 9. exd6 {[%clk 0:02:27.5]} 9... Ng6 {[%clk 0:02:35.3]}
10. Qe4 {[%clk 0:02:21.1]} 10... Bxd6 {[%clk 0:02:31.7]} 11. Bg5 {[%clk
0:02:13.6]} 11... f6 {[%clk 0:02:08.6]} 12. Be3 {[%clk 0:02:13.6]} 12... O-O
{[%clk 0:02:05.2]} 13. O-O-O {[%clk 0:02:10]} 13... Qe7 {[%clk 0:02:04.1]} 14.
h4 {[%clk 0:02:03.3]} 14... Nge5 {[%clk 0:01:30.1]} 15. Nxe5 {[%clk 0:01:41.9]}
15... Bxe5 {[%clk 0:01:28.8]} 16. Qc2 {[%clk 0:01:22]} 16... Rd8 {[%clk
0:01:01.3]} 17. Bd3 {[%clk 0:01:06.5]} 17... f5 {[%clk 0:01:00.7]} 18. a3 {[%clk
0:00:59.1]} 18... Nd4 {[%clk 0:00:58.8]} 19. Bxd4 {[%clk 0:00:58.7]} 19... Bxd4
{[%clk 0:00:58.7]} 20. g3 {[%clk 0:00:51.7]} 20... Qf6 {[%clk 0:00:55.7]} 21.
Rhe1 {[%clk 0:00:50.3]} 21... Bd7 {[%clk 0:00:55.4]} 22. Kb1 {[%clk 0:00:47.4]}
22... Bc6 {[%clk 0:00:55.4]} 23. Nb5 {[%clk 0:00:45.4]} 23... Bxb5 {[%clk
0:00:55.1]} 24. cxb5 {[%clk 0:00:45.9]} 24... e5 {[%clk 0:00:54.7]} 25. Bxf5
{[%clk 0:00:42.5]} 25... g6 {[%clk 0:00:49.9]} 26. Qc4+ {[%clk 0:00:21.2]} 26...
Kg7 {[%clk 0:00:44.4]} 27. Qc7+ {[%clk 0:00:20.8]} 27... Kh8 {[%clk 0:00:42.7]}
28. Be4 {[%clk 0:00:11.2]} 28... Rac8 {[%clk 0:00:32.8]} 29. Qxb7 {[%clk
0:00:04.8]} 29... Qxf2 {[%clk 0:00:31.3]} 30. Rxd4 {[%clk 0:00:03.1]} 30...
Qxe1+ {[%clk 0:00:21.6]} 31. Ka2 {[%clk 0:00:03.2]} 31... exd4 {[%clk
0:00:22.1]} 32. h5 {[%clk 0:00:03.8]} 32... Qxg3 {[%clk 0:00:16.9]} 33. hxg6
{[%clk 0:00:03.6]} 33... hxg6 {[%clk 0:00:17.3]} 34. Qf7 {[%clk 0:00:03.2]}
34... Rf8 {[%clk 0:00:16.2]} 35. Qe7 {[%clk 0:00:02.3]} 35... Rce8 {[%clk
0:00:16]} 36. Qb7 {[%clk 0:00:02.4]} 36... d3 {[%clk 0:00:15.7]} 37. Bxd3 {[%clk
0:00:01]} 37... Qxd3 {[%clk 0:00:15.2]} 38. Qh1+ {[%clk 0:00:01.9]} 38... Kg7
{[%clk 0:00:14.7]} 39. Qb7+ {[%clk 0:00:02.8]} 39... Rf7 {[%clk 0:00:15]} 0-1

[Event "*** Titled Tuesday Blitz"]
[Site "Chess.com"]
[Date "2020.11.03"]
[Round "8"]
[White "lider34"]
[Black "juancruzarias"]
[Result "0-1"]
[WhiteElo "2400"]
[BlackElo "2549"]
[TimeControl "180+1"]
[EndTime "11:32:35 PST"]
[Termination "juancruzarias won by checkmate"]

1. e4 {[%clk 0:03:00.9]} 1... c5 {[%clk 0:02:58.7]} 2. c3 {[%clk 0:03:00.2]}
2... e6 {[%clk 0:02:57.9]} 3. d4 {[%clk 0:02:59.5]} 3... d5 {[%clk 0:02:57.2]}
4. exd5 {[%clk 0:02:59.4]} 4... exd5 {[%clk 0:02:55.7]} 5. Bb5+ {[%clk
0:02:59.1]} 5... Bd7 {[%clk 0:02:55]} 6. Bxd7+ {[%clk 0:02:58.1]} 6... Nxd7
{[%clk 0:02:55.9]} 7. Nf3 {[%clk 0:02:57]} 7... Ngf6 {[%clk 0:02:54.5]} 8. O-O
{[%clk 0:02:55.9]} 8... Be7 {[%clk 0:02:54.1]} 9. dxc5 {[%clk 0:02:55.4]} 9...
Nxc5 {[%clk 0:02:51.7]} 10. Nbd2 {[%clk 0:02:55.1]} 10... O-O {[%clk 0:02:49.8]}
11. Nb3 {[%clk 0:02:54.7]} 11... Nce4 {[%clk 0:02:46.9]} 12. h3 {[%clk
0:02:54.6]} 12... Re8 {[%clk 0:02:44.8]} 13. Be3 {[%clk 0:02:53.9]} 13... b6
{[%clk 0:02:39.7]} 14. Bd4 {[%clk 0:02:53.5]} 14... Rc8 {[%clk 0:02:36.3]} 15.
Re1 {[%clk 0:02:52.5]} 15... Bd6 {[%clk 0:02:19.6]} 16. Qd3 {[%clk 0:02:51.8]}
16... Qd7 {[%clk 0:02:18.3]} 17. a4 {[%clk 0:02:40]} 17... Bb8 {[%clk
0:02:12.1]} 18. a5 {[%clk 0:02:36.3]} 18... Re6 {[%clk 0:02:09.1]} 19. axb6
{[%clk 0:02:34.6]} 19... axb6 {[%clk 0:02:07.4]} 20. Ra6 {[%clk 0:02:09.6]}
20... Qb7 {[%clk 0:02:04.2]} 21. Rea1 {[%clk 0:02:04.6]} 21... Nd7 {[%clk
0:01:52.9]} 22. Qb5 {[%clk 0:01:54.5]} 22... Nd6 {[%clk 0:01:49.7]} 23. Qd3
{[%clk 0:01:45.7]} 23... Nc4 {[%clk 0:01:49.5]} 24. R6a2 {[%clk 0:01:40.7]}
24... h6 {[%clk 0:01:47.7]} 25. Nbd2 {[%clk 0:01:30.9]} 25... b5 {[%clk
0:01:42.4]} 26. b3 {[%clk 0:01:29.7]} 26... Nd6 {[%clk 0:01:41.8]} 27. Nf1
{[%clk 0:01:07.7]} 27... Ne4 {[%clk 0:01:40.9]} 28. Ne3 {[%clk 0:01:06.8]} 28...
Rce8 {[%clk 0:01:28.9]} 29. Ra5 {[%clk 0:01:05]} 29... Qc6 {[%clk 0:00:57.2]}
30. Rxb5 {[%clk 0:00:59.4]} 30... Ndf6 {[%clk 0:00:45.2]} 31. Rb6 {[%clk
0:00:53.2]} 31... Qd7 {[%clk 0:00:43.2]} 32. Rxe6 {[%clk 0:00:51.9]} 32... fxe6
{[%clk 0:00:43.9]} 33. Qa6 {[%clk 0:00:41.3]} 33... e5 {[%clk 0:00:41]} 34. Ba7
{[%clk 0:00:35.3]} 34... Bxa7 {[%clk 0:00:34.6]} 35. Qxa7 {[%clk 0:00:35]} 35...
Qxa7 {[%clk 0:00:35.1]} 36. Rxa7 {[%clk 0:00:34.4]} 36... Nxc3 {[%clk
0:00:35.6]} 37. Nf5 {[%clk 0:00:34.4]} 37... Nh5 {[%clk 0:00:20.4]} 38. g4
{[%clk 0:00:33.7]} 38... Nf4 {[%clk 0:00:10.8]} 39. Rxg7+ {[%clk 0:00:31.9]}
39... Kh8 {[%clk 0:00:11.1]} 40. Rc7 {[%clk 0:00:30.4]} 40... Nce2+ {[%clk
0:00:10.7]} 41. Kh2 {[%clk 0:00:30.2]} 41... e4 {[%clk 0:00:10.9]} 42. N3h4
{[%clk 0:00:27.6]} 42... d4 {[%clk 0:00:11.3]} 43. Nxh6 {[%clk 0:00:26.7]} 43...
d3 {[%clk 0:00:10.4]} 44. Rd7 {[%clk 0:00:24.7]} 44... e3 {[%clk 0:00:07.4]} 45.
fxe3 {[%clk 0:00:21.8]} 45... Rxe3 {[%clk 0:00:08.3]} 46. g5 {[%clk 0:00:21.7]}
46... Rxh3# {[%clk 0:00:08.3]} 0-1